fUSD/lending_fUSD_20241222
["ID","MTS","AMOUNT","RATE_DAILY","PERIOD"]
[346257587,1734841717389,10063.23,0.0002,120]
[346257602,1734841832276,-333.93,0.00016206,2]
[346257603,1734841832287,-300.0,0.00016812,2]
[346257604,1734841832297,-25494.591238,0.00016813,2]
[346257605,1734841832306,-163.94,0.00016813,2]
[346257606,1734841832315,-269.58600794,0.00017803,2]
[346257607,1734841832324,-175.77,0.00017954,2]
[346257608,1734841832332,-250.0,0.00018033,2]
[346257609,1734841832341,-324.39,0.00018049,2]
[346257610,1734841832351,-12686.88,0.0001808,2]
[346257611,1734841832360,-7271.14806877,0.00018103,2]
[346257612,1734841832369,-1000.0,0.00018113,2]
[346257613,1734841832378,-423.983,0.0001822,2]
[346257614,1734841832387,-1206.00078,0.00018282,2]
[346257615,1734841832395,-618.36,0.00018285,2]
[346257616,1734841832404,-333.93,0.0001847,2]
[346257617,1734841832413,-881.94,0.000185,2]
[346257618,1734841832422,-151.00631116,0.00018795,2]
[346257619,1734841832431,-20295.3556,0.000189,2]
[346257620,1734841832440,-27793.43770262,0.00019,10]
[346257621,1734841832480,-5255.46803272,0.00019,10]
[346257622,1734841832595,-870.7,0.00019,10]
[346257628,1734841838251,-403.68805521,0.00019,10]
[346257629,1734841838337,-6834.46249233,0.00019,10]
[346257630,1734841838443,-1029.91645288,0.00019,10]
[346257631,1734841838610,-52669.10514035,0.00019,10]
[346257640,1734841840400,-274.41321942,0.000189,2]
[346257643,1734841843210,-612.02336585,0.000189,2]
[346257644,1734841843220,-4543.94695777,0.00019,10]
[346257649,1734841846254,-423.45186564,0.00018129,2]
[346257650,1734841846265,-886.43658527,0.00018989,2]
[346257651,1734841846275,-15015.74717444,0.00019,10]
[346257652,1734841846284,-19032.3608489,0.00019,2]
[346257653,1734841846298,-3003.0891511,0.00019,2]
[346257654,1734841846308,-153.6135474,0.00019003,2]
[346257655,1734841846318,-235.78366709,0.00019003,2]
[346257656,1734841846328,-151.00631116,0.00019041,2]
[346257657,1734841846340,-150.0,0.00019046,2]
[346257658,1734841846352,-177.99036086,0.00019052,2]
[346257659,1734841846362,-150.0,0.00019068,2]
[346257660,1734841846372,-209.34642845,0.00019071,2]
[346257661,1734841846382,-167.92542542,0.00019078,2]
[346257662,1734841846392,-778.2019,0.00019078,2]
[346257663,1734841846403,-1000.0,0.00019078,2]
[346257664,1734841846413,-18736.85302801,0.00019078,2]
[346257665,1734841846426,-12590.39567199,0.00019078,2]
[346257666,1734841846436,-235.783667,0.0001908,2]
[346257667,1734841846447,-150.0,0.00019092,2]
[346257668,1734841846458,-150.0,0.00019093,2]
[346257669,1734841846467,-150.0,0.00019094,2]
[346257670,1734841846665,-1898.0,0.00019096,2]
[346257671,1734841846675,-818.0,0.00019096,2]
[346257672,1734841846684,-3770.0,0.00019096,2]
[346257673,1734841846694,-1256.0,0.00019096,2]
[346257674,1734841846703,-925.0,0.00019096,2]
[346257675,1734841846713,-3682.0,0.00019096,2]
[346257676,1734841846724,-536.0,0.00019096,2]
[346257677,1734841846736,-1101.0,0.00019096,2]
[346257678,1734841846746,-1265.202,0.00019096,2]
[346257679,1734841846756,-2010.0,0.00019096,2]
[346257680,1734841846765,-3886.0,0.00019096,2]
[346257681,1734841846775,-635.0,0.00019096,2]
[346257682,1734841846784,-153.973,0.00019096,2]
[346257683,1734841846793,-13756.0,0.00019096,2]
[346257684,1734841846803,-1170.0,0.00019096,2]
[346257685,1734841846812,-500.0,0.00019099,2]
[346257686,1734841846822,-501.14228568,0.00019099,2]
[346257687,1734841846831,-500.0,0.00019099,2]
[346257688,1734841846840,-500.0,0.00019099,2]
[346257689,1734841846849,-500.0,0.00019099,2]
[346257690,1734841846858,-534.46823433,0.00019099,2]
[346257691,1734841846867,-500.0,0.00019099,2]
[346257692,1734841846876,-500.0,0.00019099,2]
[346257693,1734841846885,-150.0,0.00019099,2]
[346257694,1734841846894,-8045.055652,0.000191,2]
[346257695,1734841846964,-714.65,0.000191,2]
[346257696,1734841846976,-213115.4793607,0.000191,2]
[346257697,1734841846986,-150.0,0.00019103,2]
[346257698,1734841846994,-152.50424064,0.00019104,2]
[346257699,1734841847003,-150.0,0.00019106,2]
[346257700,1734841847012,-931.192,0.00019109,2]
[346257701,1734841847021,-150.0,0.00019113,2]
[346257702,1734841847031,-2346.77556671,0.00019131,6]
[346257703,1734841847040,-150.0,0.00019132,2]
[346257704,1734841847050,-150.0,0.00019133,2]
[346257705,1734841847059,-150.0,0.00019139,2]
[346257706,1734841847068,-150.0,0.0001914,2]
[346257707,1734841847077,-150.0,0.00019146,2]
[346257708,1734841847086,-150.0,0.00019149,2]
[346257709,1734841847095,-150.0,0.00019151,2]
[346257710,1734841847104,-235.783667,0.00019158,2]
[346257711,1734841847113,-150.0,0.00019162,2]
[346257712,1734841847123,-150.0,0.00019166,2]
[346257713,1734841847132,-155.12,0.00019168,2]
[346257714,1734841847145,-150.0,0.00019173,2]
[346257715,1734841847154,-150.0,0.00019174,2]
[346257716,1734841847163,-150.0,0.00019176,2]
[346257717,1734841847172,-150.0,0.00019177,2]
[346257718,1734841847183,-1192.77,0.00019178,2]
[346257719,1734841847192,-10000.0,0.00019178,2]
[346257720,1734841847201,-10000.0,0.00019178,2]
[346257721,1734841847211,-250.193527,0.00019178,2]
[346257722,1734841847221,-224.156426,0.00019178,2]
[346257723,1734841847231,-155.825329,0.00019178,2]
[346257724,1734841847240,-501.36231646,0.00019178,2]
[346257725,1734841847249,-153.61583,0.00019178,2]
[346257726,1734841847258,-502.31484317,0.00019178,2]
[346257727,1734841847267,-326.15996532,0.00019178,2]
[346257728,1734841847276,-501.98251505,0.00019178,2]
[346257729,1734841847285,-502.04496385,0.00019178,2]
[346257730,1734841847294,-301.70248535,0.00019178,2]
[346257731,1734841847303,-500.0,0.00019178,2]
[346257732,1734841847312,-505.98706162,0.00019178,2]
[346257733,1734841847321,-500.0,0.00019178,2]
[346257734,1734841847331,-500.0,0.00019178,2]
[346257735,1734841847340,-457.92392128,0.00019178,2]
[346257736,1734841847349,-502.42129722,0.00019178,2]
[346257737,1734841847358,-502.361165,0.00019178,2]
[346257738,1734841847367,-153.566144,0.00019178,2]
[346257739,1734841847376,-169.280007,0.00019178,2]
[346257740,1734841847385,-501.21113093,0.00019178,2]
[346257741,1734841847394,-501.72028212,0.00019178,2]
[346257742,1734841847403,-221.666737,0.00019178,2]
[346257743,1734841847412,-500.57997677,0.00019178,2]
[346257744,1734841847421,-425.61632608,0.00019178,2]
[346257745,1734841847430,-501.68771776,0.00019178,2]
[346257746,1734841847439,-500.0,0.00019178,2]
[346257747,1734841847448,-156.258468,0.00019178,2]
[346257748,1734841847457,-518.28576368,0.00019178,2]
[346257749,1734841847466,-500.0,0.00019178,2]
[346257750,1734841847475,-500.0,0.00019178,2]
[346257751,1734841847484,-500.0,0.00019178,2]
[346257752,1734841847493,-500.0,0.00019178,2]
[346257753,1734841847503,-500.0,0.00019178,2]
[346257754,1734841847512,-500.0,0.00019178,2]
[346257755,1734841847521,-500.0,0.00019178,2]
[346257756,1734841847530,-500.0,0.00019178,2]
[346257757,1734841847540,-500.0,0.00019178,2]
[346257758,1734841847550,-500.0,0.00019178,2]
[346257759,1734841847559,-500.0,0.00019178,2]
[346257760,1734841847568,-500.0,0.00019178,2]
[346257761,1734841847577,-514.39952601,0.00019178,2]
[346257762,1734841847587,-500.0,0.00019178,2]
[346257763,1734841847596,-500.0,0.00019178,2]
[346257764,1734841847606,-500.0,0.00019178,2]
[346257765,1734841847616,-500.0,0.00019178,2]
[346257766,1734841847626,-500.0,0.00019178,2]
[346257767,1734841847635,-268.827714,0.00019178,2]
[346257768,1734841847645,-500.0,0.00019178,2]
[346257769,1734841847654,-500.0,0.00019178,2]
[346257770,1734841847663,-500.0,0.00019178,2]
[346257771,1734841847672,-500.0,0.00019178,2]
[346257772,1734841847682,-500.0,0.00019178,2]
[346257773,1734841847691,-302.94699443,0.00019178,2]
[346257774,1734841847701,-500.0,0.00019178,2]
[346257775,1734841847710,-500.0,0.00019178,2]
[346257776,1734841847719,-863.660607,0.00019178,2]
[346257777,1734841847728,-500.0,0.00019178,2]
[346257778,1734841847738,-218.854485,0.00019178,2]
[346257779,1734841847747,-422.22097989,0.00019178,2]
[346257780,1734841847756,-487.0462661,0.00019178,2]
[346257781,1734841847765,-500.0,0.00019178,2]
[346257782,1734841847775,-500.0,0.00019178,2]
[346257783,1734841847783,-508.18225475,0.00019178,2]
[346257784,1734841847793,-502.83538758,0.00019178,2]
[346257785,1734841847803,-500.0,0.00019178,2]
[346257786,1734841847812,-502.43051182,0.00019178,2]
[346257787,1734841847821,-500.0,0.00019178,2]
[346257788,1734841847830,-1201.46,0.00019178,2]
[346257789,1734841847840,-502.35423883,0.00019178,2]
[346257790,1734841847850,-227.07792735,0.00019178,2]
[346257791,1734841847860,-500.0,0.00019178,2]
[346257792,1734841847870,-504.47891486,0.00019178,2]
[346257793,1734841847880,-502.72436849,0.00019178,2]
[346257794,1734841847890,-500.0,0.00019178,2]
[346257795,1734841847899,-151.0,0.00019178,2]
[346257796,1734841847908,-151.0,0.00019178,2]
[346257797,1734841847917,-151.0,0.00019178,2]
[346257798,1734841847927,-151.0,0.00019178,2]
[346257799,1734841847939,-151.0,0.00019178,2]
[346257800,1734841847948,-151.0,0.00019178,2]
[346257801,1734841847957,-151.0,0.00019178,2]
[346257802,1734841847968,-151.0,0.00019178,2]
[346257803,1734841847978,-299.281396,0.00019178,2]
[346257804,1734841847987,-502.15057168,0.00019178,2]
[346257805,1734841847996,-500.0,0.00019178,2]
[346257806,1734841848006,-500.0,0.00019178,2]
[346257807,1734841848016,-505.0896587,0.00019178,2]
[346257808,1734841848025,-157.014978,0.00019178,2]
[346257809,1734841848034,-515.22753208,0.00019178,2]
[346257810,1734841848043,-500.0,0.00019178,2]
[346257811,1734841848053,-500.0,0.00019178,2]
[346257812,1734841848062,-500.0,0.00019178,2]
[346257813,1734841848071,-501.83637131,0.00019178,2]
[346257814,1734841848079,-500.0,0.00019178,2]
[346257815,1734841848088,-500.0,0.00019178,2]
[346257816,1734841848097,-504.98155975,0.00019178,2]
[346257817,1734841848106,-516.50661361,0.00019178,2]
[346257818,1734841848116,-683.94,0.00019178,2]
[346257819,1734841848125,-503.16366144,0.00019178,2]
[346257820,1734841848135,-500.0,0.00019178,2]
[346257821,1734841848147,-500.0,0.00019178,2]
[346257822,1734841848156,-280.46105338,0.00019178,2]
[346257823,1734841848165,-500.0,0.00019178,2]
[346257824,1734841848175,-514.08716652,0.00019178,2]
[346257825,1734841848185,-500.0,0.00019178,2]
[346257826,1734841848194,-592.59,0.00019178,2]
[346257827,1734841848203,-500.0,0.00019178,2]
[346257828,1734841848212,-500.0,0.00019178,2]
[346257829,1734841848222,-500.0,0.00019178,2]
[346257830,1734841848231,-1484.29,0.00019178,2]
[346257831,1734841848242,-609.25,0.00019178,2]
[346257832,1734841848254,-500.0,0.00019178,2]
[346257833,1734841848266,-500.0,0.00019178,2]
[346257834,1734841848278,-1840.88,0.00019178,2]
[346257835,1734841848290,-500.0,0.00019178,2]
[346257836,1734841848300,-500.0,0.00019178,2]
[346257837,1734841848313,-524.20648877,0.00019178,2]
[346257838,1734841848325,-500.0,0.00019178,2]
[346257839,1734841848336,-500.0,0.00019178,2]
[346257840,1734841848349,-500.0,0.00019178,2]
[346257841,1734841848361,-500.0,0.00019178,2]
[346257842,1734841848373,-453.44475858,0.00019178,2]
[346257843,1734841848385,-500.0,0.00019178,2]
[346257844,1734841848396,-500.0,0.00019178,2]
[346257845,1734841848407,-500.0,0.00019178,2]
[346257846,1734841848417,-500.0,0.00019178,2]
[346257847,1734841848429,-500.0,0.00019178,2]
[346257848,1734841848441,-500.0,0.00019178,2]
[346257849,1734841848453,-500.0,0.00019178,2]
[346257850,1734841848465,-500.0,0.00019178,2]
[346257851,1734841848478,-500.0,0.00019178,2]
[346257852,1734841848489,-757.74,0.00019178,2]
[346257853,1734841848502,-500.0,0.00019178,2]
[346257854,1734841848515,-500.0,0.00019178,2]
[346257855,1734841848527,-504.89032579,0.00019178,2]
[346257856,1734841848540,-505.19523788,0.00019178,2]
[346257857,1734841848554,-500.0,0.00019178,2]
[346257858,1734841848567,-500.0,0.00019178,2]
[346257859,1734841848580,-503.75622235,0.00019178,2]
[346257860,1734841848593,-500.0,0.00019178,2]
[346257861,1734841848604,-500.0,0.00019178,2]
[346257862,1734841848616,-500.0,0.00019178,2]
[346257863,1734841848628,-500.0,0.00019178,2]
[346257864,1734841848641,-500.0,0.00019178,2]
[346257865,1734841848653,-500.0,0.00019178,2]
[346257866,1734841848664,-508.06428779,0.00019178,2]
[346257867,1734841848676,-500.0,0.00019178,2]
[346257868,1734841848687,-514.9,0.00019178,2]
[346257869,1734841848699,-500.0,0.00019178,2]
[346257870,1734841848710,-503.07671253,0.00019178,2]
[346257871,1734841848724,-500.0,0.00019178,2]
[346257872,1734841848737,-502.2332746,0.00019178,2]
[346257873,1734841848747,-648.87,0.00019178,2]
[346257874,1734841848758,-500.0,0.00019178,2]
[346257875,1734841848768,-500.0,0.00019178,2]
[346257876,1734841848779,-1843.57,0.00019178,2]
[346257877,1734841848792,-503.33651392,0.00019178,2]
[346257878,1734841848808,-500.0,0.00019178,2]
[346257879,1734841848820,-500.0,0.00019178,2]
[346257880,1734841848832,-500.0,0.00019178,2]
[346257881,1734841848842,-500.0,0.00019178,2]
[346257882,1734841848852,-500.0,0.00019178,2]
[346257883,1734841848862,-500.0,0.00019178,2]
[346257884,1734841848873,-500.0,0.00019178,2]
[346257885,1734841848884,-500.0,0.00019178,2]
[346257886,1734841848894,-500.0,0.00019178,2]
[346257887,1734841848906,-506.07324137,0.00019178,2]
[346257888,1734841848917,-500.0,0.00019178,2]
[346257889,1734841848927,-500.0,0.00019178,2]
[346257890,1734841848940,-500.0,0.00019178,2]
[346257891,1734841848951,-500.0,0.00019178,2]
[346257892,1734841848962,-500.0,0.00019178,2]
[346257893,1734841848972,-500.0,0.00019178,2]
[346257894,1734841848983,-500.0,0.00019178,2]
[346257895,1734841848994,-500.0,0.00019178,2]
[346257896,1734841849005,-500.0,0.00019178,2]
[346257897,1734841849015,-500.0,0.00019178,2]
[346257898,1734841849026,-500.0,0.00019178,2]
[346257899,1734841849037,-500.0,0.00019178,2]
[346257900,1734841849050,-500.0,0.00019178,2]
[346257901,1734841849061,-500.0,0.00019178,2]
[346257902,1734841849072,-500.0,0.00019178,2]
[346257903,1734841849084,-500.0,0.00019178,2]
[346257904,1734841849096,-500.0,0.00019178,2]
[346257905,1734841849108,-500.0,0.00019178,2]
[346257906,1734841849119,-1273.71,0.00019178,2]
[346257907,1734841849130,-500.0,0.00019178,2]
[346257908,1734841849144,-500.0,0.00019178,2]
[346257909,1734841849155,-1801.74,0.00019178,2]
[346257910,1734841849167,-500.0,0.00019178,2]
[346257911,1734841849178,-207.62376296,0.00019178,2]
[346257912,1734841849191,-500.0,0.00019178,2]
[346257913,1734841849202,-500.0,0.00019178,2]
[346257914,1734841849214,-500.0,0.00019178,2]
[346257915,1734841849229,-500.0,0.00019178,2]
[346257916,1734841849240,-500.0,0.00019178,2]
[346257917,1734841849252,-500.0,0.00019178,2]
[346257918,1734841849264,-500.0,0.00019178,2]
[346257919,1734841849275,-562.22278254,0.00019178,2]
[346257920,1734841849286,-500.0,0.00019178,2]
[346257921,1734841849298,-501.64527145,0.00019178,2]
[346257922,1734841849309,-500.0,0.00019178,2]
[346257923,1734841849320,-500.0,0.00019178,2]
[346257924,1734841849332,-500.0,0.00019178,2]
[346257925,1734841849343,-500.0,0.00019178,2]
[346257926,1734841849354,-500.0,0.00019178,2]
[346257927,1734841849365,-502.90831364,0.00019178,2]
[346257928,1734841849377,-502.75,0.00019178,2]
[346257929,1734841849388,-2102.62,0.00019178,2]
[346257930,1734841849399,-500.0,0.00019178,2]
[346257931,1734841849410,-500.0,0.00019178,2]
[346257932,1734841849422,-500.0,0.00019178,2]
[346257933,1734841849433,-500.0,0.00019178,2]
[346257934,1734841849444,-500.0,0.00019178,2]
[346257935,1734841849456,-791.72,0.00019178,2]
[346257936,1734841849467,-171.55965458,0.00019178,2]
[346257937,1734841849479,-471.26203165,0.00019178,2]
[346257938,1734841849490,-500.0,0.00019178,2]
[346257939,1734841849502,-500.0,0.00019178,2]
[346257940,1734841849514,-512.0522238,0.00019178,2]
[346257941,1734841849525,-500.0,0.00019178,2]
[346257942,1734841849537,-500.0,0.00019178,2]
[346257943,1734841849549,-501.23148743,0.00019178,2]
[346257944,1734841849560,-500.0,0.00019178,2]
[346257945,1734841849571,-500.0,0.00019178,2]
[346257946,1734841849582,-500.0,0.00019178,2]
[346257947,1734841849594,-500.0,0.00019178,2]
[346257948,1734841849605,-500.0,0.00019178,2]
[346257949,1734841849617,-500.0,0.00019178,2]
[346257950,1734841849628,-500.0,0.00019178,2]
[346257951,1734841849639,-500.0,0.00019178,2]
[346257952,1734841849650,-500.0,0.00019178,2]
[346257953,1734841849661,-500.0,0.00019178,2]
[346257954,1734841849672,-500.0,0.00019178,2]
[346257955,1734841849683,-500.0,0.00019178,2]
[346257956,1734841849694,-500.0,0.00019178,2]
[346257957,1734841849705,-500.0,0.00019178,2]
[346257958,1734841849716,-500.0,0.00019178,2]
[346257959,1734841849727,-510.69,0.00019178,2]
[346257960,1734841849738,-500.0,0.00019178,2]
[346257961,1734841849750,-500.0,0.00019178,2]
[346257962,1734841849761,-501.22021412,0.00019178,2]
[346257963,1734841849772,-500.0,0.00019178,2]
[346257964,1734841849783,-500.0,0.00019178,2]
[346257965,1734841849794,-500.0,0.00019178,2]
[346257966,1734841849806,-500.0,0.00019178,2]
[346257967,1734841849817,-246.51882061,0.00019178,2]
[346257968,1734841849828,-500.0,0.00019178,2]
[346257969,1734841849839,-500.0,0.00019178,2]
[346257970,1734841849851,-500.0,0.00019178,2]
[346257971,1734841849862,-776.19,0.00019178,2]
[346257972,1734841849873,-500.0,0.00019178,2]
[346257973,1734841849884,-500.0,0.00019178,2]
[346257974,1734841849895,-500.0,0.00019178,2]
[346257975,1734841849906,-500.0,0.00019178,2]
[346257976,1734841849917,-503.36221617,0.00019178,2]
[346257977,1734841849928,-580.81,0.00019178,2]
[346257978,1734841849939,-500.0,0.00019178,2]
[346257979,1734841849950,-500.0,0.00019178,2]
[346257980,1734841849961,-500.0,0.00019178,2]
[346257981,1734841849972,-520.82193397,0.00019178,2]
[346257982,1734841849983,-502.00595565,0.00019178,2]
[346257983,1734841849994,-500.0,0.00019178,2]
[346257984,1734841850005,-500.0,0.00019178,2]
[346257985,1734841850016,-503.91388236,0.00019178,2]
[346257986,1734841850027,-500.0,0.00019178,2]
[346257987,1734841850038,-500.0,0.00019178,2]
[346257988,1734841850049,-338.68400926,0.00019178,2]
[346257989,1734841850059,-502.35286265,0.00019178,2]
[346257990,1734841850071,-500.0,0.00019178,2]
[346257991,1734841850082,-500.0,0.00019178,2]
[346257992,1734841850091,-500.0,0.00019178,2]
[346257993,1734841850101,-500.0,0.00019178,2]
[346257994,1734841850110,-500.0,0.00019178,2]
[346257995,1734841850119,-500.0,0.00019178,2]
[346257996,1734841850128,-500.0,0.00019178,2]
[346257997,1734841850371,-500.0,0.00019178,2]
[346257998,1734841850394,-500.0,0.00019178,2]
[346257999,1734841850409,-500.0,0.00019178,2]
[346258000,1734841850418,-500.0,0.00019178,2]
[346258001,1734841850428,-500.0,0.00019178,2]
[346258002,1734841850437,-500.0,0.00019178,2]
[346258003,1734841850447,-500.0,0.00019178,2]
[346258004,1734841850456,-500.0,0.00019178,2]
[346258005,1734841850465,-500.0,0.00019178,2]
[346258006,1734841850474,-500.0,0.00019178,2]
[346258007,1734841850484,-500.0,0.00019178,2]
[346258008,1734841850493,-500.0,0.00019178,2]
[346258009,1734841850502,-500.0,0.00019178,2]
[346258010,1734841850512,-502.11829697,0.00019178,2]
[346258011,1734841850522,-506.90056279,0.00019178,2]
[346258012,1734841850532,-500.0,0.00019178,2]
[346258013,1734841850541,-266.62856474,0.00019178,2]
[346258014,1734841850552,-507.14190869,0.00019178,2]
[346258015,1734841850562,-500.0,0.00019178,2]
[346258016,1734841850571,-500.0,0.00019178,2]
[346258017,1734841850581,-500.0,0.00019178,2]
[346258018,1734841850589,-506.67335352,0.00019178,2]
[346258019,1734841850599,-500.0,0.00019178,2]
[346258020,1734841850608,-500.0,0.00019178,2]
[346258021,1734841850617,-500.0,0.00019178,2]
[346258022,1734841850627,-921.47,0.00019178,2]
[346258023,1734841850636,-500.0,0.00019178,2]
[346258024,1734841850646,-572.09,0.00019178,2]
[346258025,1734841850655,-1045.71,0.00019178,2]
[346258026,1734841850664,-500.0,0.00019178,2]
[346258027,1734841850673,-504.38383803,0.00019178,2]
[346258028,1734841850683,-630.08,0.00019178,2]
[346258029,1734841850692,-500.0,0.00019178,2]
[346258030,1734841850702,-500.0,0.00019178,2]
[346258031,1734841850711,-514.25352671,0.00019178,2]
[346258032,1734841850720,-2035.09,0.00019178,2]
[346258033,1734841850729,-500.0,0.00019178,2]
[346258034,1734841850739,-504.0284643,0.00019178,2]
[346258035,1734841850749,-504.99766939,0.00019178,2]
[346258036,1734841850758,-726.87,0.00019178,2]
[346258037,1734841850767,-500.0,0.00019178,2]
[346258038,1734841850776,-500.0,0.00019178,2]
[346258039,1734841850786,-969.68,0.00019178,2]
[346258040,1734841850796,-500.0,0.00019178,2]
[346258041,1734841850808,-500.0,0.00019178,2]
[346258042,1734841850817,-500.0,0.00019178,2]
[346258043,1734841850826,-500.0,0.00019178,2]
[346258044,1734841850836,-500.0,0.00019178,2]
[346258045,1734841850845,-503.239257,0.00019178,2]
[346258046,1734841850854,-500.0,0.00019178,2]
[346258047,1734841850863,-728.18,0.00019178,2]
[346258048,1734841850872,-192.7612708,0.00019178,2]
[346258049,1734841850881,-1541.2663836,0.00019178,2]
[346258073,1734843032496,-300.53,0.0001619,2]
[346258074,1734843032505,-150.00000001,0.00017507,2]
[346258075,1734843032515,-515.48310297,0.00017664,2]
[346258076,1734843032603,-50.28076386,0.00017664,2]
[346258077,1734843032612,-270.10113317,0.00017664,2]
[346258078,1734843032622,-259.51,0.00018075,2]
[346258079,1734843032633,-1000.0,0.00018075,2]
[346258080,1734843032642,-458.63,0.00018118,2]
[346258081,1734843032651,-250.0,0.0001812,2]
[346258082,1734843032662,-184.08,0.00018139,2]
[346258083,1734843032671,-218.65,0.00018168,2]
[346258084,1734843032682,-400.70261263,0.00018208,2]
[346258100,1734843038352,-224.19738737,0.00018208,2]
[346258101,1734843038362,-422.224,0.0001822,2]
[346258102,1734843038371,-300.53,0.00018454,2]
[346258103,1734843038380,-16.94861263,0.00018608,2]
[346258104,1734843038391,-720.05138737,0.00018608,2]
[346258105,1734843038403,-250.5,0.00019,2]
[346258106,1734843038412,-2530.0,0.00019,2]
[346258107,1734843038422,-152.0,0.00019006,3]
[346258108,1734843038431,-2000.0,0.00019025,2]
[346258109,1734843038442,-1265.0,0.00019054,2]
[346258110,1734843038452,-2010.0,0.00019054,2]
[346258111,1734843038462,-566.099,0.00019054,2]
[346258112,1734843038472,-150.419,0.00019054,2]
[346258113,1734843038483,-637.635,0.00019054,2]
[346258114,1734843038494,-1898.0,0.00019054,2]
[346258115,1734843038503,-1256.0,0.00019054,2]
[346258116,1734843038512,-925.0,0.00019054,2]
[346258117,1734843038521,-3770.0,0.00019054,2]
[346258118,1734843038531,-818.0,0.00019054,2]
[346258119,1734843038541,-536.0,0.00019054,2]
[346258120,1734843038553,-3682.0,0.00019054,2]
[346258121,1734843038562,-1170.0,0.00019054,2]
[346258122,1734843038571,-3886.0,0.00019054,2]
[346258123,1734843038580,-150.0,0.00019054,2]
[346258124,1734843038589,-13756.0,0.00019054,2]
[346258125,1734843038599,-150.457,0.00019054,2]
[346258126,1734843038608,-300.0,0.00019062,2]
[346258127,1734843038619,-150.0,0.00019063,2]
[346258128,1734843038628,-150.0,0.00019065,2]
[346258129,1734843038639,-150.0,0.00019077,2]
[346258130,1734843038648,-709.14926827,0.00019078,2]
[346258131,1734843038658,-338.1218321,0.00019078,2]
[346258132,1734843038675,-150.0,0.00019083,2]
[346258133,1734843038684,-1523.17533648,0.0001909,2]
[346258134,1734843038693,-150.0,0.00019109,2]
[346258135,1734843038703,-150.0,0.00019112,2]
[346258136,1734843038713,-744.953,0.00019113,2]
[346258137,1734843038723,-150.0,0.00019117,2]
[346258138,1734843038733,-150.0,0.00019124,2]
[346258139,1734843038743,-150.0,0.00019131,2]
[346258140,1734843038752,-150.0,0.00019132,2]
[346258141,1734843038762,-150.0,0.00019141,2]
[346258142,1734843038771,-150.0,0.00019142,2]
[346258144,1734843038781,-709.14926821,0.00019147,2]
[346258146,1734843038790,-338.12183201,0.00019147,2]
[346258148,1734843038800,-150.0,0.00019155,2]
[346258150,1734843038809,-503.2261,0.00019173,2]
[346258152,1734843038818,-1159.40834277,0.00019173,2]
[346258155,1734843038842,-1596.51128503,0.00019173,2]
[346258157,1734843038851,-10.00791607,0.00019173,2]
[346258159,1734843038863,-159.23592793,0.00019173,2]
[346258162,1734843038872,-649.70450612,0.00019173,2]
[346258164,1734843038891,-134.97009156,0.00019173,2]
[346258166,1734843038900,-2734.62360349,0.00019173,2]
[346258168,1734843038911,-1868.05221607,0.00019173,2]
[346258171,1734843038922,-154.84352964,0.00019173,2]
[346258173,1734843038932,-150.0,0.00019176,2]
[346258175,1734843038941,-228.66496634,0.00019177,2]